fUST/lending_fUST_20260531
["ID","MTS","AMOUNT","RATE_DAILY","PERIOD"]
[423557768,1780223441000,-151.5,8.219e-05,2]
[423557770,1780223441000,-151.5,8.219e-05,2]
[423557779,1780223441000,-500.0,8.219e-05,2]
[423557772,1780223441000,-172.5757068,8.219e-05,2]
[423557781,1780223441000,-500.0,8.219e-05,2]
[423557780,1780223441000,-500.0,8.219e-05,2]
[423557774,1780223441000,-500.0,8.219e-05,2]
[423557776,1780223441000,-500.0,8.219e-05,2]
[423557782,1780223441000,-500.0,8.219e-05,2]
[423557777,1780223441000,-500.0,8.219e-05,2]
[423557785,1780223441000,-500.0,8.219e-05,2]
[423557783,1780223441000,-500.0,8.219e-05,2]
[423557786,1780223441000,-702.12,8.219e-05,2]
[423557796,1780223441000,-404.562334,8.219e-05,2]
[423557784,1780223441000,-205.61067487,8.219e-05,2]
[423557794,1780223441000,-273.74137482,8.219e-05,2]
[423557795,1780223441000,-500.0,8.219e-05,2]
[423557788,1780223441000,-500.0,8.219e-05,2]
[423557789,1780223441000,-500.0,8.219e-05,2]
[423557793,1780223441000,-500.0,8.219e-05,2]
[423557790,1780223441000,-500.0,8.219e-05,2]
[423557831,1780223441000,-500.0,8.219e-05,2]
[423557848,1780223441000,-500.0,8.219e-05,2]
[423557830,1780223441000,-500.0,8.219e-05,2]
[423557861,1780223441000,-500.0,8.219e-05,2]
[423557872,1780223441000,-500.0,8.219e-05,2]
[423557864,1780223441000,-500.0,8.219e-05,2]
[423557873,1780223441000,-415.24482508,8.219e-05,2]
[423557863,1780223441000,-500.0,8.219e-05,2]
[423557865,1780223441000,-500.0,8.219e-05,2]
[423557867,1780223441000,-540.22252518,8.219e-05,2]
[423557869,1780223441000,-500.0,8.219e-05,2]
[423557871,1780223441000,-623.91,8.219e-05,2]
[423557866,1780223441000,-503.25272084,8.219e-05,2]
[423557868,1780223441000,-500.0,8.219e-05,2]
[423557870,1780223441000,-1140.1,8.219e-05,2]
[423557874,1780223441000,-500.0,8.219e-05,2]
[423557875,1780223441000,-500.0,8.219e-05,2]
[423557877,1780223441000,-500.0,8.219e-05,2]
[423557878,1780223441000,-500.0,8.219e-05,2]
[423557876,1780223441000,-500.0,8.219e-05,2]
[423557879,1780223441000,-501.45945344,8.219e-05,2]
[423557884,1780223441000,-500.0,8.219e-05,2]
[423557880,1780223441000,-500.0,8.219e-05,2]
[423557886,1780223441000,-657.44,8.219e-05,2]
[423557881,1780223441000,-515.42498317,8.219e-05,2]
[423557885,1780223441000,-501.64430849,8.219e-05,2]
[423557882,1780223441000,-500.0,8.219e-05,2]
[423557883,1780223441000,-500.0,8.219e-05,2]
[423557888,1780223441000,-500.0,8.219e-05,2]
[423557887,1780223441000,-501.57668196,8.219e-05,2]
[423557890,1780223441000,-151.0,8.219e-05,2]
[423557826,1780223441000,-521.87,8.219e-05,2]
[423557862,1780223441000,-500.0,8.219e-05,2]
[423557853,1780223441000,-500.0,8.219e-05,2]
[423557889,1780223441000,-500.0,8.219e-05,2]
[423557856,1780223441000,-504.40966023,8.219e-05,2]
[423557829,1780223441000,-500.0,8.219e-05,2]
[423557824,1780223441000,-500.0,8.219e-05,2]
[423557827,1780223441000,-500.0,8.219e-05,2]
[423557825,1780223441000,-500.0,8.219e-05,2]
[423557832,1780223441000,-500.0,8.219e-05,2]
[423557828,1780223441000,-500.0,8.219e-05,2]
[423557836,1780223441000,-500.0,8.219e-05,2]
[423557847,1780223441000,-500.0,8.219e-05,2]
[423557849,1780223441000,-500.0,8.219e-05,2]
[423557846,1780223441000,-500.0,8.219e-05,2]
[423557842,1780223441000,-500.0,8.219e-05,2]
[423557839,1780223441000,-500.0,8.219e-05,2]
[423557837,1780223441000,-500.0,8.219e-05,2]
[423557838,1780223441000,-500.0,8.219e-05,2]
[423557835,1780223441000,-500.0,8.219e-05,2]
[423557845,1780223441000,-500.0,8.219e-05,2]
[423557858,1780223441000,-500.46557642,8.219e-05,2]
[423557841,1780223441000,-500.0,8.219e-05,2]
[423557854,1780223441000,-500.0,8.219e-05,2]
[423557857,1780223441000,-502.04801822,8.219e-05,2]
[423557852,1780223441000,-500.0,8.219e-05,2]
[423557850,1780223441000,-215.84636106,8.219e-05,2]
[423557859,1780223441000,-501.49856346,8.219e-05,2]
[423557855,1780223441000,-250.97121276,8.219e-05,2]
[423557860,1780223441000,-500.0,8.219e-05,2]
[423557891,1780223441000,-500.0,8.219e-05,2]
[423557840,1780223441000,-500.0,8.219e-05,2]
[423557844,1780223441000,-500.92583587,8.219e-05,2]
[423557843,1780223441000,-500.0,8.219e-05,2]
[423557851,1780223441000,-500.0,8.219e-05,2]
[423557937,1780223442000,-500.0,8.219e-05,2]
[423557934,1780223442000,-500.0,8.219e-05,2]
[423557938,1780223442000,-500.0,8.219e-05,2]
[423557935,1780223442000,-501.30911003,8.219e-05,2]
[423557930,1780223442000,-500.0,8.219e-05,2]
[423557922,1780223442000,-501.19873282,8.219e-05,2]
[423557932,1780223442000,-529.29,8.219e-05,2]
[423557928,1780223442000,-500.0,8.219e-05,2]
[423557940,1780223442000,-500.0,8.219e-05,2]
[423557929,1780223442000,-500.0,8.219e-05,2]
[423557939,1780223442000,-500.0,8.219e-05,2]
[423557931,1780223442000,-519.76,8.219e-05,2]
[423557933,1780223442000,-7694.48,8.219e-05,2]
[423557950,1780223442000,-151.5,8.219e-05,2]
[423557942,1780223442000,-500.0,8.219e-05,2]
[423557952,1780223442000,-151.5,8.219e-05,2]
[423557943,1780223442000,-633.74027446,8.219e-05,2]
[423557944,1780223442000,-500.94243605,8.219e-05,2]
[423557953,1780223442000,-258.2582126,8.219e-05,2]
[423557941,1780223442000,-500.0,8.219e-05,2]
[423557946,1780223442000,-157.90202836,8.219e-05,2]
[423557948,1780223442000,-151.5,8.219e-05,2]
[423557945,1780223442000,-151.5,8.219e-05,2]
[423557947,1780223442000,-151.5,8.219e-05,2]
[423557949,1780223442000,-151.5,8.219e-05,2]
[423557951,1780223442000,-275.69096898,8.219e-05,2]
[423557919,1780223442000,-504.19951863,8.219e-05,2]
[423557936,1780223442000,-500.0,8.219e-05,2]
[423557920,1780223442000,-500.74604964,8.219e-05,2]
[423557901,1780223442000,-500.0,8.219e-05,2]
[423557917,1780223442000,-515.67,8.219e-05,2]
[423557954,1780223442000,-500.0,8.219e-05,2]
[423557898,1780223442000,-151.0,8.219e-05,2]
[423557899,1780223442000,-151.0,8.219e-05,2]
[423557895,1780223442000,-151.0,8.219e-05,2]
[423557893,1780223442000,-151.0,8.219e-05,2]
[423557896,1780223442000,-151.0,8.219e-05,2]
[423557892,1780223442000,-151.0,8.219e-05,2]
[423557897,1780223442000,-604.29,8.219e-05,2]
[423557894,1780223442000,-151.0,8.219e-05,2]
[423557902,1780223442000,-500.0,8.219e-05,2]
[423557903,1780223442000,-2199.08,8.219e-05,2]
[423557904,1780223442000,-500.0,8.219e-05,2]
[423557911,1780223442000,-544.12727342,8.219e-05,2]
[423557918,1780223442000,-500.0,8.219e-05,2]
[423557906,1780223442000,-500.0,8.219e-05,2]
[423557905,1780223442000,-500.0,8.219e-05,2]
[423557909,1780223442000,-501.56354077,8.219e-05,2]
[423557910,1780223442000,-500.0,8.219e-05,2]
[423557907,1780223442000,-2356.06,8.219e-05,2]
[423557908,1780223442000,-500.0,8.219e-05,2]
[423557914,1780223442000,-584.76709596,8.219e-05,2]
[423557925,1780223442000,-1562.73,8.219e-05,2]
[423557926,1780223442000,-500.0,8.219e-05,2]
[423557913,1780223442000,-501.01625253,8.219e-05,2]
[423557927,1780223442000,-500.0,8.219e-05,2]
[423557924,1780223442000,-954.48,8.219e-05,2]
[423557915,1780223442000,-1773.36,8.219e-05,2]
[423557916,1780223442000,-500.0,8.219e-05,2]
[423557912,1780223442000,-500.41799398,8.219e-05,2]
[423557963,1780223442000,-500.0,8.219e-05,2]
[423557900,1780223442000,-151.0,8.219e-05,2]
[423557957,1780223442000,-500.0,8.219e-05,2]
[423558005,1780223442000,-500.0,8.493e-05,2]
[423558006,1780223442000,-501.22136069,8.493e-05,2]
[423557996,1780223442000,-151.0,8.219e-05,2]
[423558004,1780223442000,-500.0,8.493e-05,2]
[423557998,1780223442000,-151.0,8.219e-05,2]
[423558007,1780223442000,-500.0,8.493e-05,2]
[423558001,1780223442000,-5227.01445297,8.279e-05,2]
[423557999,1780223442000,-151.0,8.219e-05,2]
[423558000,1780223442000,-1771.3203964,8.219e-05,2]
[423558002,1780223442000,-720.0,8.487e-05,2]
[423558003,1780223442000,-500.0,8.493e-05,2]
[423558009,1780223442000,-500.0,8.493e-05,2]
[423558010,1780223442000,-500.0,8.493e-05,2]
[423557995,1780223442000,-505.58019729,8.219e-05,2]
[423558012,1780223442000,-248.09,8.493e-05,2]
[423558008,1780223442000,-379.79916719,8.493e-05,2]
[423558011,1780223442000,-500.0,8.493e-05,2]
[423558019,1780223442000,-500.0,8.493e-05,2]
[423558013,1780223442000,-500.0,8.493e-05,2]
[423558023,1780223442000,-500.0,8.493e-05,2]
[423558014,1780223442000,-500.0,8.493e-05,2]
[423558018,1780223442000,-500.0,8.493e-05,2]
[423558015,1780223442000,-500.0,8.493e-05,2]
[423558016,1780223442000,-500.0,8.493e-05,2]
[423558017,1780223442000,-482.68640846,8.493e-05,2]
[423558022,1780223442000,-513.87886229,8.493e-05,2]
[423558021,1780223442000,-500.0,8.493e-05,2]
[423557961,1780223442000,-500.0,8.219e-05,2]
[423558020,1780223442000,-500.0,8.493e-05,2]
[423557987,1780223442000,-500.0,8.219e-05,2]
[423558024,1780223442000,-500.0,8.493e-05,2]
[423557989,1780223442000,-1234.92,8.219e-05,2]
[423557991,1780223442000,-388.857567,8.219e-05,2]
[423557958,1780223442000,-500.0,8.219e-05,2]
[423557959,1780223442000,-500.0,8.219e-05,2]
[423557955,1780223442000,-500.0,8.219e-05,2]
[423557960,1780223442000,-500.0,8.219e-05,2]
[423557956,1780223442000,-500.0,8.219e-05,2]
[423557979,1780223442000,-500.0,8.219e-05,2]
[423557978,1780223442000,-500.0,8.219e-05,2]
[423557977,1780223442000,-500.0,8.219e-05,2]
[423557980,1780223442000,-500.0,8.219e-05,2]
[423557968,1780223442000,-1784.66,8.219e-05,2]
[423557973,1780223442000,-500.0,8.219e-05,2]
[423557972,1780223442000,-500.0,8.219e-05,2]
[423557970,1780223442000,-500.0,8.219e-05,2]
[423557965,1780223442000,-504.77981858,8.219e-05,2]
[423557976,1780223442000,-299.66543937,8.219e-05,2]
[423557971,1780223442000,-500.0,8.219e-05,2]
[423557990,1780223442000,-500.4710508,8.219e-05,2]
[423557988,1780223442000,-500.0,8.219e-05,2]
[423557985,1780223442000,-801.78,8.219e-05,2]
[423557984,1780223442000,-500.0,8.219e-05,2]
[423557983,1780223442000,-500.0,8.219e-05,2]
[423557986,1780223442000,-506.81,8.219e-05,2]
[423557993,1780223442000,-500.0,8.219e-05,2]
[423557981,1780223442000,-500.0,8.219e-05,2]
[423557982,1780223442000,-500.0,8.219e-05,2]
[423557975,1780223442000,-831.06,8.219e-05,2]
[423557974,1780223442000,-500.0,8.219e-05,2]
[423557969,1780223442000,-500.0,8.219e-05,2]
[423557992,1780223442000,-500.0,8.219e-05,2]
[423558074,1780223443000,-500.0,8.493e-05,2]
[423558080,1780223443000,-500.0,8.493e-05,2]
[423558079,1780223443000,-500.0,8.493e-05,2]
[423558071,1780223443000,-345.97453762,8.493e-05,2]
[423558068,1780223443000,-500.0,8.493e-05,2]
[423558070,1780223443000,-500.0,8.493e-05,2]
[423558066,1780223443000,-500.0,8.493e-05,2]
[423558063,1780223443000,-501.81188514,8.493e-05,2]
[423558082,1780223443000,-500.0,8.493e-05,2]
[423558065,1780223443000,-197.403651,8.493e-05,2]
[423558072,1780223443000,-530.15,8.493e-05,2]
[423558062,1780223443000,-500.0,8.493e-05,2]
[423558084,1780223443000,-500.0,8.493e-05,2]
[423558076,1780223443000,-500.0,8.493e-05,2]
[423558078,1780223443000,-500.0,8.493e-05,2]
[423558073,1780223443000,-500.0,8.493e-05,2]
[423558075,1780223443000,-500.0,8.493e-05,2]
[423558077,1780223443000,-582.39510569,8.493e-05,2]
[423558083,1780223443000,-500.0,8.493e-05,2]
[423558085,1780223443000,-500.0,8.493e-05,2]
[423558087,1780223443000,-500.0,8.493e-05,2]
[423558086,1780223443000,-500.0,8.493e-05,2]
[423558088,1780223443000,-562.04,8.493e-05,2]
[423558090,1780223443000,-500.0,8.493e-05,2]
[423558067,1780223443000,-501.5590396,8.493e-05,2]
[423558089,1780223443000,-500.0,8.493e-05,2]
[423558081,1780223443000,-500.0,8.493e-05,2]
[423558064,1780223443000,-500.0,8.493e-05,2]
[423558039,1780223443000,-604.57090623,8.493e-05,2]
[423558058,1780223443000,-500.0,8.493e-05,2]
[423558091,1780223443000,-633.35618937,8.493e-05,2]
[423558034,1780223443000,-500.0,8.493e-05,2]
[423558032,1780223443000,-628.24,8.493e-05,2]
[423558026,1780223443000,-151.0,8.493e-05,2]
[423558028,1780223443000,-151.0,8.493e-05,2]
[423558025,1780223443000,-326.23925281,8.493e-05,2]
[423558027,1780223443000,-500.0,8.493e-05,2]
[423558030,1780223443000,-588.79,8.493e-05,2]
[423558029,1780223443000,-467.67378118,8.493e-05,2]
[423558031,1780223443000,-500.0,8.493e-05,2]
[423558035,1780223443000,-500.0,8.493e-05,2]
[423558037,1780223443000,-702.12,8.493e-05,2]
[423558040,1780223443000,-386.02718699,8.493e-05,2]
[423558046,1780223443000,-500.0,8.493e-05,2]
[423558036,1780223443000,-500.0,8.493e-05,2]
[423558047,1780223443000,-460.07854154,8.493e-05,2]
[423558049,1780223443000,-500.0,8.493e-05,2]
[423558050,1780223443000,-220.14873802,8.493e-05,2]
[423558043,1780223443000,-500.0,8.493e-05,2]
[423558045,1780223443000,-557.43427546,8.493e-05,2]
[423558044,1780223443000,-500.0,8.493e-05,2]
[423558042,1780223443000,-500.0,8.493e-05,2]
[423558052,1780223443000,-500.0,8.493e-05,2]
[423558054,1780223443000,-500.0,8.493e-05,2]
[423558057,1780223443000,-629.7,8.493e-05,2]
[423558055,1780223443000,-291.77,8.493e-05,2]
[423558056,1780223443000,-500.0,8.493e-05,2]
[423558060,1780223443000,-500.0,8.493e-05,2]
[423558093,1780223443000,-500.90242088,8.493e-05,2]
[423558095,1780223443000,-500.0,8.493e-05,2]
[423558094,1780223443000,-638.54,8.493e-05,2]
[423558124,1780223443000,-151.0,8.493e-05,2]
[423558127,1780223443000,-500.0,8.493e-05,2]
[423558130,1780223443000,-500.0,8.493e-05,2]
[423558140,1780223443000,-500.0,8.493e-05,2]
[423558131,1780223443000,-2356.06,8.493e-05,2]
[423558132,1780223443000,-500.0,8.493e-05,2]
[423558133,1780223443000,-1773.36,8.493e-05,2]
[423558129,1780223443000,-500.0,8.493e-05,2]
[423558135,1780223443000,-515.67,8.493e-05,2]
[423558139,1780223443000,-501.44538438,8.493e-05,2]
[423558136,1780223443000,-500.0,8.493e-05,2]
[423558134,1780223443000,-500.0,8.493e-05,2]
[423558125,1780223443000,-297.903606,8.493e-05,2]
[423558141,1780223443000,-500.0,8.493e-05,2]
[423558137,1780223443000,-954.48,8.493e-05,2]
[423558143,1780223443000,-500.0,8.493e-05,2]
[423558142,1780223443000,-500.0,8.493e-05,2]
[423558145,1780223443000,-529.29,8.493e-05,2]
[423558149,1780223443000,-1784.66,8.493e-05,2]
[423558148,1780223443000,-500.0,8.493e-05,2]
[423558147,1780223443000,-500.0,8.493e-05,2]
[423558144,1780223443000,-519.76,8.493e-05,2]
[423558103,1780223443000,-500.0,8.493e-05,2]
[423558151,1780223443000,-500.0,8.493e-05,2]
[423558150,1780223443000,-500.0,8.493e-05,2]
[423558152,1780223443000,-500.0,8.493e-05,2]
[423558138,1780223443000,-1562.73,8.493e-05,2]
[423558126,1780223443000,-500.0,8.493e-05,2]
[423558146,1780223443000,-7694.48,8.493e-05,2]
[423558122,1780223443000,-151.0,8.493e-05,2]
[423558123,1780223443000,-151.0,8.493e-05,2]
[423558092,1780223443000,-500.0,8.493e-05,2]
[423558097,1780223443000,-500.0,8.493e-05,2]
[423558100,1780223443000,-500.0,8.493e-05,2]
[423558101,1780223443000,-500.0,8.493e-05,2]
[423558099,1780223443000,-500.0,8.493e-05,2]
[423558098,1780223443000,-500.0,8.493e-05,2]
[423558102,1780223443000,-500.0,8.493e-05,2]
[423558104,1780223443000,-1140.1,8.493e-05,2]
[423558106,1780223443000,-500.0,8.493e-05,2]
[423558107,1780223443000,-500.0,8.493e-05,2]
[423558105,1780223443000,-623.91,8.493e-05,2]
[423558109,1780223443000,-500.0,8.493e-05,2]
[423558096,1780223443000,-335.66154643,8.493e-05,2]
[423558112,1780223443000,-500.0,8.493e-05,2]
[423558108,1780223443000,-500.0,8.493e-05,2]
[423558128,1780223443000,-2199.08,8.493e-05,2]
[423558117,1780223443000,-500.0,8.493e-05,2]
[423558119,1780223443000,-151.0,8.493e-05,2]
[423558118,1780223443000,-535.34,8.493e-05,2]
[423558121,1780223443000,-604.29,8.493e-05,2]
[423558116,1780223443000,-500.0,8.493e-05,2]
[423558115,1780223443000,-657.44,8.493e-05,2]
[423558111,1780223443000,-500.0,8.493e-05,2]
[423558120,1780223443000,-151.0,8.493e-05,2]
[423558110,1780223443000,-446.73682803,8.493e-05,2]
[423558113,1780223443000,-500.0,8.493e-05,2]
[423558114,1780223443000,-500.0,8.493e-05,2]
[423558182,1780223444000,-500.0,8.767e-05,2]
[423558191,1780223444000,-500.0,8.767e-05,2]
[423558180,1780223444000,-566.42307902,8.767e-05,2]
[423558181,1780223444000,-500.0,8.767e-05,2]
[423558184,1780223444000,-337.23,8.767e-05,2]
[423558188,1780223444000,-500.0,8.767e-05,2]
[423558187,1780223444000,-151.0,8.767e-05,2]
[423558185,1780223444000,-151.0,8.767e-05,2]
[423558189,1780223444000,-500.0,8.767e-05,2]
[423558186,1780223444000,-500.0,8.767e-05,2]
[423558183,1780223444000,-500.0,8.767e-05,2]
[423558196,1780223444000,-500.0,8.767e-05,2]
[423558190,1780223444000,-500.0,8.767e-05,2]
[423558202,1780223444000,-500.0,8.767e-05,2]
[423558192,1780223444000,-702.12,8.767e-05,2]
[423558193,1780223444000,-500.0,8.767e-05,2]
[423558197,1780223444000,-471.71,8.767e-05,2]
[423558194,1780223444000,-500.0,8.767e-05,2]
[423558195,1780223444000,-500.0,8.767e-05,2]
[423558199,1780223444000,-500.0,8.767e-05,2]
[423558198,1780223444000,-500.0,8.767e-05,2]
[423558176,1780223444000,-500.0,8.767e-05,2]
[423558201,1780223444000,-500.0,8.767e-05,2]
[423558179,1780223444000,-500.0,8.767e-05,2]
[423558166,1780223444000,-1234.92,8.493e-05,2]
[423558177,1780223444000,-500.0,8.767e-05,2]
[423558204,1780223444000,-500.0,8.767e-05,2]
[423558153,1780223444000,-500.0,8.493e-05,2]
[423558155,1780223444000,-831.06,8.493e-05,2]
[423558157,1780223444000,-500.0,8.493e-05,2]
[423558156,1780223444000,-500.0,8.493e-05,2]
[423558158,1780223444000,-500.0,8.493e-05,2]
[423558154,1780223444000,-500.0,8.493e-05,2]
[423558160,1780223444000,-500.0,8.493e-05,2]
[423558164,1780223444000,-506.81,8.493e-05,2]
[423558159,1780223444000,-500.0,8.493e-05,2]
[423558162,1780223444000,-500.0,8.493e-05,2]
[423558161,1780223444000,-500.0,8.493e-05,2]
[423558163,1780223444000,-801.78,8.493e-05,2]
[423558165,1780223444000,-500.0,8.493e-05,2]
[423558168,1780223444000,-151.77933521,8.696e-05,2]
[423558167,1780223444000,-500.0,8.493e-05,2]
[423558174,1780223444000,-500.0,8.767e-05,2]
[423558169,1780223444000,-151.0,8.715e-05,2]
[423558173,1780223444000,-161.96,8.767e-05,2]
[423558170,1780223444000,-151.0,8.715e-05,2]
[423558175,1780223444000,-500.0,8.767e-05,2]
[423558171,1780223444000,-500.0,8.767e-05,2]
[423558172,1780223444000,-500.0,8.767e-05,2]
[423558178,1780223444000,-500.0,8.767e-05,2]
[423558214,1780223444000,-500.0,8.767e-05,2]
[423558200,1780223444000,-500.0,8.767e-05,2]
[423558205,1780223444000,-199.32,8.767e-05,2]
[423558242,1780223444000,-500.0,8.767e-05,2]
[423558232,1780223444000,-500.0,8.767e-05,2]
[423558233,1780223444000,-657.44,8.767e-05,2]
[423558231,1780223444000,-508.40125692,8.767e-05,2]
[423558234,1780223444000,-500.0,8.767e-05,2]
[423558235,1780223444000,-500.0,8.767e-05,2]
[423558238,1780223444000,-500.0,8.767e-05,2]
[423558239,1780223444000,-2199.08,8.767e-05,2]
[423558236,1780223444000,-604.29,8.767e-05,2]
[423558237,1780223444000,-500.0,8.767e-05,2]
[423558244,1780223444000,-1773.36,8.767e-05,2]
[423558243,1780223444000,-575.79,8.767e-05,2]
[423558252,1780223444000,-500.0,8.767e-05,2]
[423558251,1780223444000,-500.0,8.767e-05,2]
[423558248,1780223444000,-954.48,8.767e-05,2]
[423558245,1780223444000,-500.0,8.767e-05,2]
[423558249,1780223444000,-1562.73,8.767e-05,2]
[423558247,1780223444000,-500.0,8.767e-05,2]
[423558250,1780223444000,-500.0,8.767e-05,2]
[423558254,1780223444000,-519.76,8.767e-05,2]
[423558255,1780223444000,-529.29,8.767e-05,2]
[423558253,1780223444000,-500.0,8.767e-05,2]
[423558203,1780223444000,-500.0,8.767e-05,2]
[423558241,1780223444000,-2356.06,8.767e-05,2]
[423558229,1780223444000,-500.0,8.767e-05,2]
[423558246,1780223444000,-515.67,8.767e-05,2]
[423558230,1780223444000,-500.0,8.767e-05,2]
[423558240,1780223444000,-500.0,8.767e-05,2]
[423558206,1780223444000,-500.0,8.767e-05,2]
[423558210,1780223444000,-500.0,8.767e-05,2]
[423558256,1780223444000,-7694.48,8.767e-05,2]
[423558207,1780223444000,-500.0,8.767e-05,2]
[423558209,1780223444000,-373.45,8.767e-05,2]
[423558213,1780223444000,-471.34,8.767e-05,2]
[423558211,1780223444000,-500.0,8.767e-05,2]
[423558212,1780223444000,-500.0,8.767e-05,2]
[423558215,1780223444000,-500.0,8.767e-05,2]
[423558218,1780223444000,-500.0,8.767e-05,2]
[423558208,1780223444000,-500.0,8.767e-05,2]
[423558222,1780223444000,-500.0,8.767e-05,2]
[423558216,1780223444000,-385.65,8.767e-05,2]
[423558219,1780223444000,-500.0,8.767e-05,2]
[423558226,1780223444000,-500.0,8.767e-05,2]
[423558220,1780223444000,-500.0,8.767e-05,2]
[423558227,1780223444000,-500.0,8.767e-05,2]
[423558228,1780223444000,-500.0,8.767e-05,2]
[423558225,1780223444000,-623.91,8.767e-05,2]
[423558224,1780223444000,-1140.1,8.767e-05,2]
[423558223,1780223444000,-500.0,8.767e-05,2]
[423558221,1780223444000,-500.0,8.767e-05,2]
[423558217,1780223444000,-562.85,8.767e-05,2]
[423558306,1780223445000,-497.08,9.041e-05,2]
[423558288,1780223445000,-547.01274726,9.041e-05,2]
[423558297,1780223445000,-500.0,9.041e-05,2]
[423558304,1780223445000,-500.0,9.041e-05,2]
[423558305,1780223445000,-231.71,9.041e-05,2]
[423558296,1780223445000,-500.0,9.041e-05,2]
[423558291,1780223445000,-500.0,9.041e-05,2]
[423558289,1780223445000,-500.0,9.041e-05,2]
[423558293,1780223445000,-702.12,9.041e-05,2]
[423558290,1780223445000,-500.0,9.041e-05,2]
[423558286,1780223445000,-500.0,9.041e-05,2]
[423558301,1780223445000,-500.0,9.041e-05,2]
[423558295,1780223445000,-582.01090978,9.041e-05,2]
[423558300,1780223445000,-500.0,9.041e-05,2]
[423558319,1780223445000,-500.0,9.041e-05,2]
[423558302,1780223445000,-500.0,9.041e-05,2]
[423558303,1780223445000,-255.62,9.041e-05,2]
[423558299,1780223445000,-304.3,9.041e-05,2]
[423558308,1780223445000,-472.37221523,9.041e-05,2]
[423558318,1780223445000,-623.91,9.041e-05,2]
[423558312,1780223445000,-500.0,9.041e-05,2]
[423558311,1780223445000,-500.0,9.041e-05,2]
[423558307,1780223445000,-500.0,9.041e-05,2]
[423558314,1780223445000,-621.89695321,9.041e-05,2]
[423558315,1780223445000,-500.0,9.041e-05,2]
[423558309,1780223445000,-344.16,9.041e-05,2]
[423558313,1780223445000,-516.38647689,9.041e-05,2]
[423558294,1780223445000,-500.0,9.041e-05,2]
[423558298,1780223445000,-460.42,9.041e-05,2]
[423558285,1780223445000,-500.0,9.041e-05,2]
[423558257,1780223445000,-500.0,8.767e-05,2]
[423558282,1780223445000,-500.0,9.041e-05,2]
[423558258,1780223445000,-500.0,8.767e-05,2]
[423558261,1780223445000,-500.0,8.767e-05,2]
[423558259,1780223445000,-1784.66,8.767e-05,2]
[423558260,1780223445000,-500.0,8.767e-05,2]
[423558310,1780223445000,-500.0,9.041e-05,2]
[423558264,1780223445000,-831.06,8.767e-05,2]
[423558262,1780223445000,-500.0,8.767e-05,2]
[423558266,1780223445000,-500.0,8.767e-05,2]
[423558267,1780223445000,-500.0,8.767e-05,2]
[423558263,1780223445000,-500.0,8.767e-05,2]
[423558265,1780223445000,-500.0,8.767e-05,2]
[423558269,1780223445000,-500.0,8.767e-05,2]
[423558279,1780223445000,-500.0,9.041e-05,2]
[423558284,1780223445000,-500.0,9.041e-05,2]
[423558280,1780223445000,-500.0,9.041e-05,2]
[423558273,1780223445000,-500.0,8.767e-05,2]
[423558272,1780223445000,-506.81,8.767e-05,2]
[423558277,1780223445000,-453.67840316,9e-05,2]
[423558271,1780223445000,-801.78,8.767e-05,2]
[423558274,1780223445000,-1234.92,8.767e-05,2]
[423558278,1780223445000,-500.0,9.041e-05,2]
[423558270,1780223445000,-500.0,8.767e-05,2]
[423558275,1780223445000,-500.97193915,8.767e-05,2]
[423558276,1780223445000,-587.0,8.789e-05,2]
[423558292,1780223445000,-500.0,9.041e-05,2]
[423558281,1780223445000,-500.0,9.041e-05,2]
[423558283,1780223445000,-500.0,9.041e-05,2]
[423558287,1780223445000,-399.81935152,9.041e-05,2]
[423558268,1780223445000,-500.0,8.767e-05,2]
[423558316,1780223445000,-500.0,9.041e-05,2]
[423558317,1780223445000,-1140.1,9.041e-05,2]
[423558323,1780223445000,-547.65,9.041e-05,2]
[423558361,1780223445000,-831.06,9.041e-05,2]